fUST/lending_fUST_20250515
["ID","MTS","AMOUNT","RATE_DAILY","PERIOD"]
[361102102,1747257556068,-205.63022163,0.0002734,16]
[361102103,1747257556090,-205.63022163,0.0002738,17]
[361102104,1747257556111,-400.0,0.00027397,60]
[361102105,1747257556133,-161.047594,0.00027397,2]
[361102106,1747257556154,-500.0,0.00027397,5]
[361102107,1747257556181,422.27619506,0.00026899,2]
[361102108,1747257593436,169.0066856,0.00026675,4]
[361102109,1747257607469,354.38966471,0.00027397,7]
[361102110,1747257632318,-169.0066856,0.00027397,7]
[361102111,1747257632340,-151.702,0.0002742,16]
[361102112,1747257632362,-300.0,0.00027448,2]
[361102113,1747257632383,-300.0,0.00027448,2]
[361102114,1747257632405,-1200.0,0.00027448,2]
[361102115,1747257632426,-300.0,0.00027448,2]
[361102116,1747257632449,-500.0,0.00027449,2]
[361102117,1747257632471,-601.27382754,0.00027449,2]
[361102118,1747257632495,-500.0,0.00027449,2]
[361102119,1747257632520,-500.0,0.00027449,2]
[361102120,1747257632541,-500.0,0.00027449,2]
[361102121,1747257632564,-500.0,0.00027449,2]
[361102122,1747257632586,-500.0,0.00027449,2]
[361102123,1747257632608,-500.0,0.00027449,2]
[361102124,1747257632631,-500.0,0.00027449,2]
[361102125,1747257632652,-500.0,0.00027449,2]
[361102126,1747257632674,-350.0,0.00027449,2]
[361102127,1747257632697,-500.0,0.00027449,2]
[361102128,1747257632719,-500.0,0.00027449,2]
[361102129,1747257632740,-500.0,0.00027449,2]
[361102130,1747257632760,-500.0,0.00027449,2]
[361102131,1747257632782,-500.0,0.00027449,2]
[361102132,1747257632803,-500.0,0.00027449,2]
[361102133,1747257632825,-500.0,0.00027449,2]
[361102134,1747257632847,-500.0,0.00027449,2]
[361102135,1747257632870,-500.0,0.00027468,2]
[361102136,1747257632892,-500.0,0.00027468,2]
[361102137,1747257632916,-500.0,0.00027468,2]
[361102138,1747257632939,-576.68243804,0.00027468,2]
[361102139,1747257632964,-562.74675932,0.00027468,2]
[361102140,1747257632990,-500.0,0.00027468,2]
[361102141,1747257633013,-500.0,0.00027468,2]
[361102142,1747257633036,-500.0,0.00027468,2]
[361102143,1747257633059,-500.0,0.00027468,2]
[361102144,1747257633084,-500.0,0.00027468,2]
[361102145,1747257633107,-500.0,0.00027468,2]
[361102146,1747257633132,-408.17841721,0.00027468,2]
[361102147,1747257633156,-500.0,0.00027468,2]
[361102148,1747257633179,-500.0,0.00027468,2]
[361102149,1747257633203,-350.0,0.00027468,2]
[361102150,1747257633225,-41622.40987229,0.00027469,2]
[361102151,1747257744036,1273.0,0.00027531,120]
[361102152,1747258010602,500.0,0.00027531,120]
[361102153,1747258019998,500.0,0.00027531,120]
[361102154,1747258042496,696.421915,0.00027531,120]
[361102157,1747258112442,500.0,0.00027531,120]
[361102159,1747258120048,500.0,0.00027531,120]
[361102160,1747258129489,500.0,0.00027531,120]
[361102161,1747258138748,500.0,0.00027531,120]
[361102163,1747258168005,500.0,0.00027531,120]
[361102165,1747258182268,179.18334,0.00027397,120]
[361102169,1747258203171,500.0,0.00027531,120]
[361102170,1747258219104,500.0,0.00027531,120]
[361102183,1747258231888,-300.0,0.00026299,2]
[361102184,1747258231898,-107.96641018,0.000263,2]
[361102186,1747258231910,-285.95632134,0.000263,2]
[361102188,1747258231920,-500.0,0.000263,2]
[361102190,1747258231929,-500.0,0.000263,2]
[361102192,1747258231939,-253.67770663,0.000263,2]
[361102194,1747258231949,-500.0,0.000263,2]
[361102197,1747258231959,-500.0,0.000263,2]
[361102199,1747258231968,-500.0,0.000263,2]
[361102201,1747258231978,-500.0,0.000263,2]
[361102203,1747258231988,-500.0,0.000263,2]
[361102204,1747258231997,-500.0,0.000263,2]
[361102206,1747258232006,-500.0,0.000263,2]
[361102208,1747258232016,-500.0,0.000263,2]
[361102210,1747258232025,-500.0,0.000263,2]
[361102212,1747258232035,-507.87857713,0.000263,2]
[361102213,1747258232044,-500.0,0.000263,2]
[361102215,1747258232054,-347.22369733,0.000263,2]
[361102217,1747258232063,-500.0,0.000263,2]
[361102219,1747258232073,-500.0,0.000263,2]
[361102220,1747258232082,-500.0,0.000263,2]
[361102221,1747258232091,-283.44599133,0.000263,2]
[361102222,1747258232101,-500.0,0.000263,2]
[361102223,1747258232111,-500.0,0.000263,2]
[361102224,1747258232121,-500.0,0.000263,2]
[361102225,1747258232130,-500.0,0.000263,2]
[361102226,1747258232140,-500.0,0.000263,2]
[361102227,1747258232150,-500.0,0.000263,2]
[361102228,1747258232159,-395.44412878,0.000263,2]
[361102229,1747258232168,-500.0,0.000263,2]
[361102230,1747258232179,-500.0,0.000263,2]
[361102231,1747258232188,-295.12738275,0.000263,2]
[361102232,1747258232199,-500.0,0.000263,2]
[361102233,1747258232208,-500.0,0.000263,2]
[361102234,1747258232218,-500.0,0.000263,2]
[361102235,1747258232228,-492.21604473,0.000263,2]
[361102236,1747258232237,-500.0,0.000263,2]
[361102237,1747258232249,-500.0,0.000263,2]
[361102238,1747258232259,-500.0,0.000263,2]
[361102239,1747258232268,-500.0,0.000263,2]
[361102240,1747258232278,-500.0,0.000263,2]
[361102241,1747258232288,-304.21746761,0.000263,2]
[361102242,1747258232298,-5925.21064202,0.00026301,2]
[361102243,1747258232310,-829.57622035,0.00026301,2]
[361102267,1747258237902,-10575.5818112,0.00026302,2]
[361102347,1747258240369,-13980.1545607,0.00026302,2]
[361102348,1747258240379,-500.0,0.00026314,2]
[361102349,1747258240389,-500.0,0.00026314,2]
[361102350,1747258240400,-500.0,0.00026314,2]
[361102351,1747258240410,-500.0,0.00026314,2]
[361102352,1747258240419,-500.0,0.00026314,2]
[361102353,1747258240428,-590.68358803,0.00026314,2]
[361102354,1747258240438,-500.0,0.00026314,2]
[361102355,1747258240447,-500.0,0.00026314,2]
[361102356,1747258240457,-500.0,0.00026314,2]
[361102357,1747258240466,-500.0,0.00026314,2]
[361102358,1747258240476,-500.0,0.00026314,2]
[361102359,1747258240487,-500.0,0.00026314,2]
[361102360,1747258240496,-500.85089711,0.000264,2]
[361102361,1747258240506,-169.0066857,0.00026675,4]
[361102362,1747258240516,-314.30604044,0.00027,3]
[361102363,1747258240526,-160.0,0.00027317,2]
[361102364,1747258240536,-422.27619506,0.00027317,2]
[361102365,1747258240545,-500.0,0.00027397,5]
[361102366,1747258240555,-74270.00596255,0.00027469,2]
[361102595,1747258247031,-0.33585968,0.00027469,2]
[361102596,1747258288649,535.0,0.00027531,120]
[361102597,1747258293092,161.047594,0.00013699,2]
[361102605,1747258930750,200.0,0.00027531,120]
[361102606,1747258944799,200.0,0.00027531,120]
[361102607,1747258954242,200.0,0.00027531,120]
[361102678,1747259438260,-337.02880205,0.000249,12]
[361102680,1747259438271,-255.01415364,0.00024999,2]
[361102682,1747259438280,-221.3573383,0.00024999,2]
[361102684,1747259438289,-384.49544004,0.00024999,2]
[361102687,1747259438300,-214.99835205,0.00024999,2]
[361102689,1747259438309,-162.482,0.00024999,8]
[361102691,1747259438318,-26704.17192224,0.00025,2]
[361102693,1747259438327,-337.02880205,0.00025003,12]
[361102695,1747259438337,-337.02880205,0.00025107,12]
[361102697,1747259438346,-337.02880205,0.0002521,12]
[361102698,1747259438356,-500.0,0.0002525,2]
[361102700,1747259438365,-275.74591207,0.00025313,2]
[361102702,1747259438375,-527.57439464,0.00025313,2]
[361102704,1747259438384,-500.0,0.00025313,2]
[361102706,1747259438393,-239.45965177,0.00025313,2]
[361102708,1747259438403,-500.0,0.00025313,2]
[361102710,1747259438412,-500.0,0.00025313,2]
[361102712,1747259438422,-500.0,0.00025313,2]
[361102714,1747259438432,-500.0,0.00025313,2]
[361102716,1747259438441,-27011.86109039,0.00025314,2]
[361102718,1747259438451,-337.02880205,0.00025314,12]
[361102720,1747259438461,-337.02880205,0.00025417,13]
[361102722,1747259438470,-337.02880205,0.00025521,13]
[361102724,1747259438479,-337.02880205,0.00025624,13]
[361102726,1747259438489,-337.02880205,0.00025728,13]
[361102728,1747259438498,-337.02880205,0.00025831,13]
[361102729,1747259438507,-337.02880205,0.00025934,14]
[361102730,1747259438517,-337.02880205,0.00026038,14]
[361102731,1747259438527,-160.0,0.0002606,2]
[361102732,1747259438537,-422.27619506,0.0002606,2]
[361102733,1747259438547,-337.02880205,0.00026141,14]
[361102734,1747259438557,-337.02880205,0.00026245,14]
[361102735,1747259438566,-337.02880205,0.00026348,14]
[361102736,1747259438578,-200.0,0.00026426,7]
[361102737,1747259438587,-200.0,0.00026426,7]
[361102738,1747259438597,-337.02880205,0.00026452,15]
[361102739,1747259438607,-337.02880205,0.00026555,15]
[361102740,1747259438617,-337.02880205,0.00026659,15]
[361102741,1747259438626,-807.6929032,0.00026675,4]
[361102742,1747259438635,-337.02880205,0.00026762,15]
[361102743,1747259438645,-337.02880205,0.00026866,16]
[361102744,1747259438655,-337.02880205,0.00026969,16]
[361102745,1747259438665,-314.30604044,0.00027,3]
[361102746,1747259438674,-337.02880205,0.00027072,16]
[361102747,1747259438684,-337.02880205,0.00027176,16]
[361102748,1747259438694,-337.02880205,0.00027279,16]
[361102749,1747259438703,-337.02880205,0.00027383,17]
[361102750,1747259438712,-454.48931052,0.00027397,60]
[361102751,1747259438722,-500.0,0.00027397,5]
[361102752,1747259438731,-151.0,0.00027433,2]
[361102753,1747259438740,-207.4,0.00027433,2]
[361102754,1747259438749,-5895.26882279,0.00027439,2]
[361102755,1747259438758,-967.11295487,0.00027439,3]
[361102756,1747259438767,-115008.70597368,0.0002744,2]
[361102757,1747259438859,-878.62109527,0.0002744,2]
[361102758,1747259438872,-2572.33716708,0.0002744,2]
[361102759,1747259438885,-5351.95317902,0.0002744,2]
[361102760,1747259438897,-7797.80001,0.0002744,2]
[361102761,1747259438908,-2947.73423,0.0002744,2]
[361102762,1747259438921,-5369.8679293,0.0002744,2]
[361102794,1747259440527,-9112.87130658,0.0002744,2]
[361102801,1747259443329,-327.5959234,0.0002744,2]
[361102802,1747259443341,-2246.81322944,0.0002744,2]
[361102816,1747259450369,161.047594,0.00013699,2]
[361102818,1747259568919,-151.353754,0.000234,3]
[361102819,1747259568942,-153.66113,0.000234,3]
[361102820,1747259568964,-102.985116,0.00023904,2]
[361102832,1747260535779,14196.9062598,0.0002753,120]
[361102833,1747260555227,171.954066,0.00013699,2]
[361102850,1747260632368,-160.0,0.00024811,2]
[361102851,1747260632378,-422.27619506,0.00024811,2]
[361102852,1747260632387,-829.01386424,0.00024864,2]
[361102853,1747260632399,-1170.8237832,0.00025015,2]
[361102854,1747260632409,-200.0,0.00025036,7]
[361102855,1747260632419,-234.83087809,0.00025036,7]
[361102856,1747260632429,-1200.0,0.00025065,2]
[361102857,1747260632439,-300.0,0.00025065,2]
[361102858,1747260632449,-300.0,0.00025066,2]
[361102859,1747260632459,-300.0,0.00025066,2]
[361102860,1747260632469,-300.0,0.00025066,2]
[361102861,1747260632478,-552.412,0.00025068,2]
[361102862,1747260632487,-2240.0,0.00025068,2]
[361102863,1747260632498,-706.0,0.00025068,2]
[361102864,1747260632508,-502.65948373,0.00025562,2]
[361102865,1747260632517,-502.65948373,0.00025671,2]
[361102866,1747260632527,-502.65948373,0.00025808,2]
[361102867,1747260632537,-210.64300129,0.000259,14]
[361102868,1747260632547,-502.65948373,0.00025918,2]
[361102869,1747260632557,-502.65948373,0.00026055,2]
[361102870,1747260632567,-215.0738,0.00026099,2]
[361102871,1747260632577,-500.0,0.00026135,2]
[361102872,1747260632587,-502.65948373,0.00026164,2]
[361102873,1747260632596,-210.64300128,0.00026186,14]
[361102875,1747260632606,-151.0,0.00026242,2]
[361102877,1747260632616,-2200.0,0.00026242,2]
[361102879,1747260632625,-502.65948373,0.00026301,2]
[361102881,1747260632635,-502.65948373,0.00026411,2]
[361102883,1747260632645,-210.64300128,0.00026471,15]
[361102885,1747260632654,-502.65948373,0.00026548,2]
[361102887,1747260632664,-502.65948373,0.00026658,2]
[361102889,1747260632674,-1307.1859448,0.00026675,4]
[361102891,1747260632683,-210.64300128,0.00026757,15]
[361102893,1747260632694,-502.65948373,0.00026795,2]
[361102895,1747260632703,-178.82936567,0.00026795,2]
[361102897,1747260632713,-151.0,0.00026795,2]
[361102899,1747260632723,-284.10913262,0.00026822,2]
[361102902,1747260632737,-363.1221292,0.00026849,2]
[361102904,1747260632746,-363.1221292,0.00026849,2]
[361102906,1747260632756,-362.7164272,0.00026849,2]
[361102908,1747260632766,-502.65948373,0.00026904,2]
[361102910,1747260632775,-412.3340899,0.00026986,2]
[361102912,1747260632785,-569.2587971,0.00026986,2]
[361102914,1747260632795,-569.2587971,0.00026986,2]
[361102916,1747260632805,-157.9553211,0.00026986,2]
[361102918,1747260632815,-569.2587971,0.00026986,2]
[361102920,1747260632824,-153.0,0.00026986,2]
[361102922,1747260632833,-157.5095296,0.00026986,2]
[361102924,1747260632842,-569.2587971,0.00026986,2]
[361102926,1747260632851,-157.9553211,0.00026986,2]
[361102928,1747260632860,-153.0,0.00026986,2]
[361102930,1747260632870,-569.2587971,0.00026986,2]
[361102932,1747260632879,-153.0,0.00026986,2]
[361102934,1747260632888,-157.9553211,0.00026986,2]
[361102936,1747260632898,-569.2587971,0.00026986,2]
[361102938,1747260632908,-157.9553211,0.00026986,2]
[361102940,1747260632918,-157.6816496,0.00026986,2]
[361102942,1747260632928,-153.0,0.00026986,2]
[361102944,1747260632939,-153.0,0.00026986,2]
[361102946,1747260632948,-569.2587971,0.00026986,2]
[361102948,1747260632958,-250.1872115,0.00026986,2]
[361102950,1747260632968,-314.30604044,0.00027,3]
[361102952,1747260632977,-162.48203808,0.00027043,15]
[361102954,1747260632987,-210.64300128,0.00027043,16]
[361102956,1747260632997,-420.0,0.00027153,2]
[361102958,1747260633007,-630.83702749,0.00027245,2]
[361102960,1747260633016,-369.30207625,0.00027274,2]
[361102962,1747260633025,-500.0,0.00027274,2]
[361102964,1747260633034,-335.0245494,0.00027274,2]
[361102966,1747260633044,-500.0,0.00027274,2]
[361102968,1747260633054,-540.0752814,0.00027274,2]
[361102970,1747260633064,-1320.0,0.00027275,2]
[361102972,1747260633073,-210.64300128,0.00027329,16]
[361102974,1747260633083,-154.18501736,0.0002737,2]
[361102976,1747260633093,-154.18501735,0.0002739,2]
[361102978,1747260633102,-500.0,0.00027397,14]
[361102980,1747260633112,-624.59233432,0.00027397,14]
[361102982,1747260633122,-619.0,0.00027397,2]
[361102984,1747260633132,-400.0,0.00027397,60]
[361102986,1747260633141,-619.0,0.00027424,2]
[361102988,1747260633151,-160.0,0.00027449,2]
[361102990,1747260633161,-619.0,0.00027452,2]
[361102992,1747260633170,-1019.68797441,0.00027469,2]
[361102994,1747260633182,-500.0,0.00027469,2]
[361102996,1747260633192,-500.0,0.00027469,2]
[361102998,1747260633202,-500.0,0.00027469,2]
[361103000,1747260633212,-500.0,0.00027469,2]
[361103003,1747260633221,-500.0,0.00027469,2]
[361103005,1747260633231,-500.0,0.00027469,2]
[361103006,1747260633240,-575.16127793,0.00027469,2]
[361103009,1747260633250,-2947.6344114,0.00027469,2]
[361103010,1747260633259,-483.55647744,0.00027469,3]
[361103012,1747260633269,-71322.41173698,0.00027469,2]
[361103015,1747260633282,-219937.65113902,0.00027469,2]
[361103017,1747260633292,-500.0,0.00027473,5]
[361103019,1747260633302,-271.84811828,0.00027473,5]
[361103021,1747260633311,-500.0,0.00027473,5]
[361103023,1747260633320,-500.0,0.00027473,5]
[361103025,1747260633330,-500.0,0.00027473,5]
[361103027,1747260633340,-500.0,0.00027473,5]
[361103028,1747260633350,-500.0,0.00027473,5]
[361103029,1747260633359,-500.0,0.00027473,5]
[361103030,1747260633370,-568.58457712,0.00027473,5]
[361103031,1747260633379,-500.0,0.00027473,5]
[361103032,1747260633389,-500.0,0.00027473,5]
[361103033,1747260633401,-500.0076644,0.00027473,5]
[361103034,1747260633411,-500.0,0.00027473,5]
[361103035,1747260633421,-500.0,0.00027473,5]
[361103036,1747260633431,-500.0,0.00027473,5]
[361103037,1747260633442,-500.0,0.00027473,5]
[361103038,1747260633452,-500.0,0.00027473,5]
[361103039,1747260633462,-500.0,0.00027473,5]
[361103040,1747260633472,-500.0,0.00027473,5]
[361103041,1747260633482,-500.0,0.00027473,5]
[361103042,1747260633492,-500.0,0.00027473,5]
[361103043,1747260633502,-500.0,0.00027473,5]
[361103044,1747260633512,-500.0,0.00027473,5]
[361103045,1747260633521,-500.0,0.00027473,5]
[361103046,1747260633531,-178.58582441,0.00027473,5]
[361103047,1747260633540,-500.0,0.00027473,2]
[361103048,1747260633550,-422.23726592,0.00027473,5]
[361103049,1747260633560,-619.0,0.00027479,2]
[361103050,1747260633571,-99999.1002,0.00027479,2]
[361103051,1747260633582,-151.0,0.0002749,7]
[361103052,1747260633592,-151.0,0.0002749,7]
[361103053,1747260633602,-244.843486,0.0002749,7]
[361103054,1747260633612,-151.0,0.0002749,7]
[361103055,1747260633623,-244.843486,0.0002749,7]
[361103056,1747260633633,-151.0,0.0002749,7]
[361103057,1747260633644,-151.0,0.0002749,7]
[361103058,1747260633654,-136745.63507629,0.0002749,2]
[361103062,1747260638281,-500.0,0.0002613,2]
[361103063,1747260638291,-500.0,0.0002613,2]
[361103064,1747260638301,-500.0,0.0002613,2]
[361103065,1747260638311,-433.00449839,0.0002613,2]
[361103066,1747260638322,-500.0,0.0002613,2]
[361103067,1747260638331,-500.0,0.0002613,2]
[361103068,1747260638344,-500.0,0.0002613,2]
[361103069,1747260638356,-262.56994977,0.0002613,2]
[361103070,1747260638366,-500.0,0.0002613,2]
[361103071,1747260638375,-371.71671533,0.0002613,2]
[361103072,1747260638384,-500.0,0.0002613,2]
[361103073,1747260638393,-500.0,0.0002613,2]
[361103074,1747260638403,-500.0,0.0002613,2]
[361103075,1747260638412,-500.0,0.0002613,2]
[361103076,1747260638422,-500.0,0.0002613,2]
[361103077,1747260638433,-500.0,0.0002613,2]
[361103078,1747260638443,-500.0,0.0002613,2]
[361103079,1747260638453,-500.0,0.0002613,2]
[361103080,1747260638464,-500.0,0.0002613,2]
[361103081,1747260638475,-500.0,0.0002613,2]
[361103082,1747260638486,-500.0,0.0002613,2]
[361103083,1747260638496,-500.0,0.0002613,2]
[361103084,1747260638506,-500.0,0.0002613,2]
[361103085,1747260638518,-500.0,0.0002613,2]
[361103086,1747260638528,-500.0,0.0002613,2]
[361103087,1747260638537,-500.0,0.0002613,2]
[361103088,1747260638547,-500.0,0.0002613,2]
[361103089,1747260638557,-500.0,0.0002613,2]
[361103090,1747260638567,-500.0,0.00027274,2]
[361103091,1747260638576,-154514.42779971,0.0002749,2]
[361103092,1747260638586,-151.0,0.0002749,7]
[361103093,1747260638595,-151.0,0.0002749,7]
[361103094,1747260638605,-151.144259,0.0002749,7]
[361103095,1747260638615,-151.0,0.0002749,7]
[361103096,1747260638624,-151.0,0.0002749,7]
[361103097,1747260638634,-904.281122,0.0002749,7]
[361103098,1747260638644,-904.281122,0.0002749,7]
[361103099,1747260638653,-151.0,0.0002749,7]
[361103100,1747260638663,-151.0,0.0002749,7]
[361103101,1747260638843,-151.0,0.0002749,7]
[361103102,1747260638852,-151.0,0.0002749,7]
[361103103,1747260638862,-233.343731,0.0002749,7]
[361103104,1747260638872,-93771.44357874,0.000275,2]
[361103105,1747260638881,-10000.0,0.000275,7]
[361103106,1747260638892,-1200.14,0.000275,7]
[361103107,1747260638902,-151.0,0.000275,7]
[361103108,1747260638911,-151.0,0.000275,7]
[361103109,1747260638921,-151.0,0.000275,7]
[361103110,1747260638931,-151.0,0.000275,7]
[361103111,1747260638941,-151.0,0.000275,7]
[361103112,1747260638951,-151.0,0.000275,7]
[361103113,1747260638960,-151.0,0.000275,7]
[361103114,1747260638970,-151.0,0.000275,7]
[361103115,1747260638980,-151.0,0.000275,7]
[361103116,1747260638992,-151.0,0.000275,19]
[361103117,1747260639003,-151.0,0.000275,11]
[361103118,1747260639013,-151.0,0.000275,12]
[361103119,1747260639023,-151.0,0.000275,16]
[361103120,1747260639032,-297.081218,0.000275,7]
[361103121,1747260639042,-151.0,0.000275,7]
[361103122,1747260639052,-151.0,0.000275,7]
[361103123,1747260639061,-151.0,0.000275,7]
[361103124,1747260639072,-151.0,0.000275,7]
[361103125,1747260639082,-271.851692,0.000275,7]
[361103126,1747260639091,-151.0,0.000275,7]
[361103127,1747260639102,-151.0,0.000275,7]
[361103128,1747260639111,-151.0,0.000275,7]
[361103129,1747260639121,-151.0,0.000275,7]
[361103130,1747260639131,-151.0,0.000275,7]
[361103131,1747260639141,-151.0,0.000275,7]
[361103132,1747260639151,-151.0,0.000275,7]
[361103133,1747260639160,-151.0,0.000275,7]
[361103134,1747260639170,-151.0,0.000275,7]
[361103135,1747260639181,-244.588864,0.000275,7]
[361103136,1747260639191,-151.0,0.000275,7]
[361103137,1747260639200,-831.869266,0.000275,7]
[361103138,1747260639210,-151.0,0.000275,7]
[361103139,1747260639219,-229.936183,0.000275,7]
[361103140,1747260639229,-151.0,0.000275,7]
[361103141,1747260639239,-229.936183,0.000275,7]
[361103142,1747260639249,-151.0,0.000275,7]
[361103143,1747260639258,-181.392244,0.000275,7]
[361103144,1747260639268,-181.392244,0.000275,7]
[361103145,1747260639278,-154.062408,0.000275,7]
[361103146,1747260639288,-422.27619506,0.000275,7]
[361103147,1747260639297,-151.0,0.000275,7]
[361103148,1747260639307,-244.843486,0.000275,7]
[361103149,1747260639316,-244.843486,0.000275,7]
[361103150,1747260639326,-160.0,0.000275,7]
[361103151,1747260639336,-151.0,0.000275,7]
[361103152,1747260639345,-151.0,0.000275,7]
[361103153,1747260639355,-2113.518647,0.000275,7]
[361103154,1747260639364,-2113.518647,0.000275,7]
[361103155,1747260639373,-151.0,0.000275,7]
[361103156,1747260639383,-151.0,0.000275,7]
[361103157,1747260639393,-904.281122,0.000275,7]
[361103158,1747260639405,-904.281122,0.000275,7]
[361103159,1747260639414,-151.0,0.000275,7]
[361103160,1747260639424,-151.0,0.000275,7]
[361103161,1747260639434,-151.0,0.000275,7]
[361103162,1747260639444,-619.0,0.00027507,2]
[361103163,1747260639454,-619.0,0.00027534,2]
[361103164,1747260639464,-2783.0,0.00027555,2]
[361103165,1747260639474,-2783.0,0.00027555,2]
[361103166,1747260639485,-2783.0,0.00027555,2]
[361103167,1747260639495,-619.0,0.00027561,2]
[361103168,1747260639505,-1059.198362,0.00027567,13]
[361103169,1747260639514,-619.0,0.00027589,2]
[361103170,1747260639524,-181.11458984,0.0002759,7]
[361103171,1747260639536,-151.0,0.000276,15]
[361103172,1747260639545,-151.0,0.000276,18]
[361103173,1747260639555,-151.0,0.000276,12]
[361103174,1747260639565,-151.0,0.000276,10]
[361103175,1747260639575,-151.0,0.000276,16]
[361103176,1747260639584,-151.0,0.000276,18]
[361103177,1747260639594,-151.0,0.000276,10]
[361103178,1747260639604,-210.64300128,0.00027614,17]
[361103179,1747260639614,-619.0,0.00027616,2]
[361103180,1747260639623,-300.0,0.0002764,5]
[361103181,1747260639633,-619.0,0.00027644,2]
[361103182,1747260639643,-619.0,0.00027671,2]
[361103183,1747260639653,-248.6325,0.00027671,2]
[361103184,1747260639662,-348.92904695,0.00027673,5]
[361103185,1747260639672,-412.64203253,0.00027673,5]
[361103186,1747260639681,-500.0,0.00027673,5]
[361103187,1747260639691,-500.0,0.00027673,5]
[361103188,1747260639700,-151.0,0.00027673,7]
[361103189,1747260639710,-151.0,0.0002769,7]
[361103190,1747260639719,-151.0,0.0002769,7]
[361103191,1747260639729,-151.0,0.0002769,7]
[361103192,1747260639739,-151.0,0.0002769,7]
[361103193,1747260639749,-151.0,0.0002769,7]
[361103194,1747260639758,-151.0,0.0002769,7]
[361103195,1747260639768,-151.0,0.0002769,7]
[361103196,1747260639778,-151.0,0.0002769,7]
[361103197,1747260639787,-831.869266,0.0002769,7]
[361103198,1747260639797,-229.936183,0.0002769,7]
[361103199,1747260639807,-151.0,0.0002769,7]
[361103200,1747260639816,-151.0,0.0002769,7]
[361103201,1747260639826,-229.936183,0.0002769,7]
[361103202,1747260639836,-181.392244,0.0002769,7]
[361103203,1747260639845,-181.392244,0.0002769,7]
[361103204,1747260639855,-244.843486,0.0002769,7]
[361103205,1747260639865,-244.843486,0.0002769,7]
[361103206,1747260639874,-151.0,0.0002769,7]
[361103207,1747260639884,-196.882094,0.0002769,7]
[361103208,1747260639894,-2113.518647,0.0002769,7]
[361103209,1747260639903,-2113.518647,0.0002769,7]
[361103210,1747260639913,-151.0,0.0002769,7]
[361103211,1747260639923,-151.0,0.0002769,7]
[361103212,1747260639933,-904.281122,0.0002769,7]
[361103213,1747260639943,-904.281122,0.0002769,7]
[361103214,1747260639953,-619.0,0.00027698,2]
[361103215,1747260639963,-141698.18,0.000277,7]
[361103216,1747260639972,-3298.68,0.000277,7]
[361103217,1747260639982,-13299.7,0.000277,2]
[361103218,1747260639993,-151.0,0.000277,7]
[361103219,1747260640003,-151.0,0.000277,7]
[361103220,1747260640013,-151.412294,0.000277,7]
[361103221,1747260640023,-151.0,0.000277,7]
[361103222,1747260640032,-151.0,0.000277,7]
[361103223,1747260640042,-151.000001,0.000277,7]
[361103224,1747260640052,-151.0,0.000277,7]
[361103225,1747260640062,-198.363091,0.000277,7]
[361103226,1747260640071,-151.0,0.000277,7]
[361103227,1747260640081,-157.059143,0.000277,7]
[361103228,1747260640091,-151.0,0.000277,14]
[361103229,1747260640100,-151.0,0.000277,10]